[Event "3rd Memorial Warakomska 2019"]
[Site "Suwalki"]
[Date "2019.08.11"]
[Round "8.41"]
[White "Praczukowski, Stanislaw"]
[Black "Maj, Pawel"]
[Result "1-0"]
[ECO "E12"]
[WhiteElo "2166"]
[BlackElo "2127"]
[Annotator "NA"]
[PlyCount "61"]
[EventDate "2019.08.05"]
[EventType "swiss"]
[EventCountry "POL"]
[SourceTitle "playchess.com"]
[Source "ChessBase"]
[SourceQuality "1"]
[TimeControl "40/5400+30:1800+30"]

1. d4 {[%emt 0:00:00]} Nf6 {[%emt 0:00:00]} 2. c4 {[%emt 0:00:15]} e6 {[%emt 0:00:00]} 3. Nf3 {[%emt 0:00:16]} b6 {[%emt 0:00:24]} 4. a3 {[%emt 0:00:15]} Bb7 {[%emt 0:00:10]} 5. Nc3 {[%emt 0:00:07]} d5 {[%emt 0:00:18]} 6. cxd5 {[%emt 0:00:07]} Nxd5 {[%emt 0:00:09]} 7. e3 {[%emt 0:00:31]} Be7 {[%emt 0:00:30]} 8. Bb5+ {[%emt 0:00:34]} c6 {[%emt 0:03:52]} 9. Bd3 {[%emt 0:01:50]} Nd7 {[%emt 0:06:22]} 10. O-O {[%emt 0:01:56]} Qc7 {[%emt 0:04:04]} 11. Qe2 {[%emt 0:01:36]} O-O {[%emt 0:04:01]} 12. Qc2 {[%emt 0:09:53]} h6 {[%emt 0:10:21]} 13. Nxd5 {[%emt 0:01:36]} exd5 {[%emt 0:00:10]} 14. b3 {[%emt 0:05:33]} Bd6 {[%emt 0:05:14]} 15. Bb2 {[%emt 0:04:41]} Rfe8 {[%emt 0:04:39]} 16. Rac1 {[%emt 0:00:18]} Rac8 {[%emt 0:03:50]} 17. Bh7+ {[%emt 0:02:57]} Kh8 {[%emt 0:01:01]} 18. Bf5 {[%emt 0:00:07]} Rcd8 {[%emt 0:14:41]} 19. Rfd1 {[%emt 0:01:46]} Nb8 {[%emt 0:10:26]} 20. Ne5 {[%emt 0:09:43]} Qe7 {[%emt 0:06:19]} 21. f4 {[%emt 0:05:54]} c5 {[%emt 0:04:46]} 22. Qe2 {[%emt 0:08:26]} Kg8 {[%emt 0:04:46]} 23. Bb1 {[%emt 0:05:04]} Nd7 {[%emt 0:01:38]} 24. Qg4 {[%emt 0:07:02]} cxd4 {[%emt 0:02:58]} 25. Nxd7 {[%emt 0:01:30]} Qxd7 {[%emt 0:01:58]} 26. Bf5 {[%emt 0:00:50]} Qe7 {[%emt 0:01:20]} 27. Bxd4 {[%emt 0:00:12]} Qf8 {[%emt 0:00:35]} 28. b4 {[%emt 0:04:06]} Bc8 {[%emt 0:01:52]} 29. Bxc8 {[%emt 0:01:30]} Rxc8 {[%emt 0:00:04]} 30. Rxc8 {[%emt 0:00:07]} Rxc8 {[%emt 0:00:06]} 31. Bxg7 {[%emt 0:00:10]} 1-0

[Event "3rd Memorial Warakomska 2019"]
[Site "Suwalki"]
[Date "2019.08.11"]
[Round "8.42"]
[White "Dmochowska, Agnieszka"]
[Black "Chan, Kim Yew"]
[Result "0-1"]
[ECO "B27"]
[WhiteElo "2126"]
[BlackElo "2276"]
[Annotator "NA"]
[PlyCount "84"]
[EventDate "2019.08.05"]
[EventType "swiss"]
[EventCountry "POL"]
[SourceTitle "playchess.com"]
[Source "ChessBase"]
[SourceQuality "1"]
[TimeControl "40/5400+30:1800+30"]

1. e4 {[%emt 0:00:00]} c5 {[%emt 0:00:00]} 2. Nf3 {[%emt 0:00:13]} g6 {[%emt 0:00:00]} 3. d4 {[%emt 0:00:06]} Bg7 {[%emt 0:00:02]} 4. c4 {[%emt 0:01:10]} d6 {[%emt 0:00:14]} 5. Be3 {[%emt 0:03:42]} Nc6 {[%emt 0:00:09]} 6. Nc3 {[%emt 0:07:49]} Qa5 {[%emt 0:03:07]} 7. Qd2 {[%emt 0:01:54]} Bg4 {[%emt 0:02:53]} 8. dxc5 {[%emt 0:12:08]} Bxf3 {[%emt 0:03:14]} 9. gxf3 {[%emt 0:01:29]} dxc5 {[%emt 0:00:06]} 10. Nd5 {[%emt 0:04:50]} Qxd2+ {[%emt 0:02:03]} 11. Bxd2 {[%emt 0:03:18]} O-O-O {[%emt 0:01:14]} 12. O-O-O {[%emt 0:01:24]} e6 {[%emt 0:01:09]} 13. Bc3 {[%emt 0:00:51]} Bd4 {[%emt 0:08:33]} 14. Bxd4 {[%emt 0:03:09]} Nxd4 {[%emt 0:01:48]} 15. Nc3 {[%emt 0:00:11]} Nf6 {[%emt 0:04:04]} 16. e5 {[%emt 0:10:42]} Nh5 {[%emt 0:03:59]} 17. Ne4 {[%emt 0:01:55]} Nxf3 {[%emt 0:02:57]} 18. Nd6+ {[%emt 0:00:09]} Kc7 {[%emt 0:01:07]} 19. Bg2 {[%emt 0:01:04]} Nxe5 {[%emt 0:01:08]} 20. Nxb7 {[%emt 0:00:14]} Rxd1+ {[%emt 0:05:38]} 21. Rxd1 {[%emt 0:00:20]} Nf4 {[%emt 0:00:38]} 22. Bh1 {[%emt 0:07:32]} Nfd3+ {[%emt 0:02:59]} 23. Kc2 {[%emt 0:00:09]} Nxf2 {[%emt 0:00:14]} 24. Rf1 {[%emt 0:00:09]} Neg4 {[%emt 0:03:18]} 25. Rg1 {[%emt 0:12:17]} Nxh1 {[%emt 0:04:22]} 26. Rxg4 {[%emt 0:00:10]} Kxb7 {[%emt 0:00:16]} 27. Rf4 {[%emt 0:00:06]} f5 {[%emt 0:00:11]} 28. Rf1 {[%emt 0:00:07]} Rd8 {[%emt 0:00:20]} 29. Rxh1 {[%emt 0:00:07]} Rd4 {[%emt 0:00:05]} 30. b3 {[%emt 0:00:08]} Rg4 {[%emt 0:00:52]} 31. Kc3 {[%emt 0:00:35]} e5 {[%emt 0:00:07]} 32. a3 {[%emt 0:00:19]} a5 {[%emt 0:00:21]} 33. b4 {[%emt 0:00:18]} axb4+ {[%emt 0:00:01]} 34. axb4 {[%emt 0:00:05]} cxb4+ {[%emt 0:00:03]} 35. Kxb4 {[%emt 0:00:08]} Rd4 {[%emt 0:01:19]} 36. Kc5 {[%emt 0:01:15]} Rd7 {[%emt 0:00:18]} 37. Rb1+ {[%emt 0:00:09]} Kc7 {[%emt 0:00:01]} 38. Rb6 {[%emt 0:09:50]} e4 {[%emt 0:00:55]} 39. Re6 {[%emt 0:00:19]} Kd8 {[%emt 0:00:42]} 40. Kb6 {[%emt 0:00:00]} Re7 {[%emt 0:00:00]} 41. Rf6 {[%emt 0:04:56]} e3 {[%emt 0:01:50]} 42. c5 {[%emt 0:00:27]} e2 {[%emt 0:00:47]} 0-1

[Event "3rd Memorial Warakomska 2019"]
[Site "Suwalki"]
[Date "2019.08.11"]
[Round "8.43"]
[White "Oborski, Artur"]
[Black "Szostko, Jakub"]
[Result "0-1"]
[ECO "D38"]
[WhiteElo "1969"]
[BlackElo "2245"]
[Annotator "NA"]
[PlyCount "70"]
[EventDate "2019.08.05"]
[EventType "swiss"]
[EventCountry "POL"]
[SourceTitle "playchess.com"]
[Source "ChessBase"]
[SourceQuality "1"]
[TimeControl "40/5400+30:1800+30"]

1. d4 {[%emt 0:00:00]} Nf6 {[%emt 0:00:00]} 2. c4 {[%emt 0:00:00]} e6 {[%emt 0:00:00]} 3. Nf3 {[%emt 0:00:00]} d5 {[%emt 0:00:00]} 4. Nc3 {[%emt 0:00:00]} Bb4 {[%emt 0:00:14]} 5. cxd5 {[%emt 0:00:30]} exd5 {[%emt 0:00:21]} 6. Bg5 {[%emt 0:00:27]} O-O {[%emt 0:01:16]} 7. e3 {[%emt 0:00:09]} h6 {[%emt 0:05:53]} 8. Bh4 {[%emt 0:00:22]} Bf5 {[%emt 0:03:05]} 9. Qb3 {[%emt 0:04:35]} Bxc3+ {[%emt 0:02:45]} 10. bxc3 {[%emt 0:00:10]} Nbd7 {[%emt 0:02:07]} 11. Be2 {[%emt 0:08:14]} c5 {[%emt 0:01:21]} 12. Bg3 {[%emt 0:04:00]} Qa5 {[%emt 0:04:30]} 13. O-O {[%emt 0:02:57]} c4 {[%emt 0:02:14]} 14. Qb2 {[%emt 0:02:41]} Ne4 {[%emt 0:02:45]} 15. Rfc1 {[%emt 0:03:12]} Qb6 {[%emt 0:13:37]} 16. Qxb6 {[%emt 0:02:55]} axb6 {[%emt 0:01:22]} 17. a4 {[%emt 0:01:39]} Ra7 {[%emt 0:03:07]} 18. Bd1 {[%emt 0:11:40]} Rfa8 {[%emt 0:02:18]} 19. Ne5 {[%emt 0:02:32]} b5 {[%emt 0:05:58]} 20. Nxd7 {[%emt 0:02:23]} Bxd7 {[%emt 0:00:31]} 21. f3 {[%emt 0:00:41]} Nxg3 {[%emt 0:05:38]} 22. hxg3 {[%emt 0:00:36]} bxa4 {[%emt 0:03:49]} 23. Ra3 {[%emt 0:00:12]} Bc6 {[%emt 0:05:12]} 24. Bc2 {[%emt 0:00:33]} b5 {[%emt 0:05:33]} 25. e4 {[%emt 0:00:29]} Re8 {[%emt 0:03:39]} 26. Rb1 {[%emt 0:01:32]} Rb7 {[%emt 0:01:17]} 27. exd5 {[%emt 0:02:05]} Bxd5 {[%emt 0:00:15]} 28. Be4 {[%emt 0:00:35]} Bxe4 {[%emt 0:00:33]} 29. fxe4 {[%emt 0:00:06]} Rxe4 {[%emt 0:01:29]} 30. Rxa4 {[%emt 0:00:11]} bxa4 {[%emt 0:00:33]} 31. Rxb7 {[%emt 0:00:06]} Re3 {[%emt 0:00:09]} 32. Ra7 {[%emt 0:01:17]} Rxg3 {[%emt 0:00:32]} 33. Rxa4 {[%emt 0:00:13]} Rxc3 {[%emt 0:00:03]} 34. d5 {[%emt 0:00:39]} Rd3 {[%emt 0:00:54]} 35. Rxc4 {[%emt 0:00:08]} Rxd5 {[%emt 0:00:03]} 0-1

[Event "3rd Memorial Warakomska 2019"]
[Site "Suwalki"]
[Date "2019.08.11"]
[Round "8.44"]
[White "Czarniecka, Aleksandra"]
[Black "Lisowski, Krzysztof"]
[Result "1/2-1/2"]
[ECO "B33"]
[WhiteElo "2042"]
[BlackElo "2187"]
[Annotator "NA"]
[PlyCount "81"]
[EventDate "2019.08.05"]
[EventType "swiss"]
[EventCountry "POL"]
[SourceTitle "playchess.com"]
[Source "ChessBase"]
[SourceQuality "1"]
[TimeControl "40/5400+30:1800+30"]

1. e4 {[%emt 0:00:52]} c5 {[%emt 0:00:00]} 2. Nf3 {[%emt 0:00:39]} Nc6 {[%emt 0:00:00]} 3. d4 {[%emt 0:00:05]} cxd4 {[%emt 0:00:00]} 4. Nxd4 {[%emt 0:00:05]} Nf6 {[%emt 0:00:06]} 5. Nc3 {[%emt 0:00:17]} e5 {[%emt 0:00:09]} 6. Ndb5 {[%emt 0:00:50]} d6 {[%emt 0:00:11]} 7. Bg5 {[%emt 0:00:08]} a6 {[%emt 0:00:19]} 8. Na3 {[%emt 0:00:33]} b5 {[%emt 0:00:24]} 9. Nd5 {[%emt 0:00:52]} Be7 {[%emt 0:00:24]} 10. Bxf6 {[%emt 0:01:14]} Bxf6 {[%emt 0:00:15]} 11. c3 {[%emt 0:00:31]} O-O {[%emt 0:00:31]} 12. Nc2 {[%emt 0:01:27]} Rb8 {[%emt 0:01:09]} 13. h4 {[%emt 0:17:53]} g6 {[%emt 0:02:06]} 14. h5 {[%emt 0:09:10]} Bg7 {[%emt 0:15:09]} 15. Be2 {[%emt 0:03:47]} Ne7 {[%emt 0:22:08]} 16. Ncb4 {[%emt 0:08:32]} Nxd5 {[%emt 0:11:13]} 17. Nxd5 {[%emt 0:00:43]} Be6 {[%emt 0:00:24]} 18. Qd2 {[%emt 0:12:05]} Bxd5 {[%emt 0:17:08]} 19. Qxd5 {[%emt 0:00:48]} Qg5 {[%emt 0:06:25]} 20. Kf1 {[%emt 0:03:41]} Rb6 {[%emt 0:07:43]} 21. Rd1 {[%emt 0:05:14]} Bh6 {[%emt 0:02:47]} 22. hxg6 {[%emt 0:04:54]} hxg6 {[%emt 0:00:13]} 23. Rh3 {[%emt 0:00:47]} Kg7 {[%emt 0:00:37]} 24. b3 {[%emt 0:03:16]} Qe7 {[%emt 0:01:13]} 25. c4 {[%emt 0:01:19]} b4 {[%emt 0:00:39]} 26. Qa5 {[%emt 0:03:04]} Rfb8 {[%emt 0:09:10]} 27. Rhd3 {[%emt 0:01:27]} Rc6 {[%emt 0:00:48]} 28. Qd5 {[%emt 0:03:53]} Qc7 {[%emt 0:00:40]} 29. Rf3 {[%emt 0:06:26]} Rf8 {[%emt 0:00:05]} 30. Qd3 {[%emt 0:00:45]} Bg5 {[%emt 0:00:34]} 31. Rh3 {[%emt 0:02:14]} Qe7 {[%emt 0:01:28]} 32. Qd5 {[%emt 0:00:36]} Qc7 {[%emt 0:00:12]} 33. Qd3 {[%emt 0:00:41]} Qb6 {[%emt 0:00:59]} 34. Qg3 {[%emt 0:01:22]} Qd8 {[%emt 0:00:40]} 35. Qh2 {[%emt 0:00:36]} Rh8 {[%emt 0:00:34]} 36. Rxh8 {[%emt 0:03:48]} Qxh8 {[%emt 0:00:04]} 37. Qxh8+ {[%emt 0:00:05]} Kxh8 {[%emt 0:00:03]} 38. Bg4 {[%emt 0:00:32]} Be7 {[%emt 0:00:52]} 39. Ke2 {[%emt 0:01:04]} Kg7 {[%emt 0:00:21]} 40. g3 {[%emt 0:00:00]} Kf6 {[%emt 0:00:00]} 41. Rd5 {[%emt 0:08:11]} 1/2-1/2

[Event "3rd Memorial Warakomska 2019"]
[Site "Suwalki"]
[Date "2019.08.11"]
[Round "8.45"]
[White "Balinski, Damian"]
[Black "Szczurek, Krzysztof"]
[Result "0-1"]
[ECO "A15"]
[WhiteElo "2176"]
[BlackElo "2104"]
[Annotator "NA"]
[PlyCount "74"]
[EventDate "2019.08.05"]
[EventType "swiss"]
[EventCountry "POL"]
[SourceTitle "playchess.com"]
[Source "ChessBase"]
[SourceQuality "1"]
[TimeControl "40/5400+30:1800+30"]

1. c4 {[%emt 0:00:00]} Nf6 {[%emt 0:00:00]} 2. g3 {[%emt 0:00:00]} g6 {[%emt 0:00:00]} 3. Bg2 {[%emt 0:00:00]} Bg7 {[%emt 0:00:00]} 4. Nc3 {[%emt 0:00:00]} O-O {[%emt 0:00:25]} 5. d4 {[%emt 0:00:00]} d6 {[%emt 0:00:17]} 6. e3 {[%emt 0:00:00]} Nbd7 {[%emt 0:00:10]} 7. Nge2 {[%emt 0:00:00]} e5 {[%emt 0:00:18]} 8. b3 {[%emt 0:00:00]} Re8 {[%emt 0:04:13]} 9. O-O {[%emt 0:00:00]} c6 {[%emt 0:00:42]} 10. a4 {[%emt 0:03:40]} e4 {[%emt 0:04:52]} 11. Ba3 {[%emt 0:04:15]} Nf8 {[%emt 0:00:35]} 12. h3 {[%emt 0:04:01]} h5 {[%emt 0:01:24]} 13. b4 {[%emt 0:13:10]} Bf5 {[%emt 0:02:29]} 14. d5 {[%emt 0:09:13]} cxd5 {[%emt 0:06:32]} 15. cxd5 {[%emt 0:00:20]} Qd7 {[%emt 0:00:10]} 16. Kh2 {[%emt 0:00:07]} N8h7 {[%emt 0:00:09]} 17. Rc1 {[%emt 0:03:21]} Ng5 {[%emt 0:03:46]} 18. Nf4 {[%emt 0:04:06]} a6 {[%emt 0:07:08]} 19. Nb1 {[%emt 0:16:15]} Nf3+ {[%emt 0:10:05]} 20. Bxf3 {[%emt 0:00:42]} exf3 {[%emt 0:00:05]} 21. Qxf3 {[%emt 0:01:00]} Qxa4 {[%emt 0:00:22]} 22. Qd1 {[%emt 0:01:43]} Qd7 {[%emt 0:00:10]} 23. Bb2 {[%emt 0:01:33]} h4 {[%emt 0:08:17]} 24. gxh4 {[%emt 0:11:03]} Re4 {[%emt 0:01:59]} 25. Bd4 {[%emt 0:05:19]} Bxh3 {[%emt 0:17:42]} 26. Nxh3 {[%emt 0:09:51]} Rxh4 {[%emt 0:00:06]} 27. Qf3 {[%emt 0:00:27]} Ne4 {[%emt 0:00:06]} 28. Kg2 {[%emt 0:02:11]} Rg4+ {[%emt 0:13:27]} 29. Kh2 {[%emt 0:00:06]} Rh4 {[%emt 0:00:04]} 30. Kg2 {[%emt 0:00:05]} Bxd4 {[%emt 0:06:20]} 31. exd4 {[%emt 0:00:02]} Rg4+ {[%emt 0:00:07]} 32. Kh2 {[%emt 0:00:10]} Kg7 {[%emt 0:00:15]} 33. Rg1 {[%emt 0:03:05]} Rh4 {[%emt 0:00:19]} 34. Kg2 {[%emt 0:00:23]} Rah8 {[%emt 0:00:13]} 35. Rh1 {[%emt 0:01:19]} g5 {[%emt 0:05:39]} 36. Rcg1 {[%emt 0:05:06]} Rg4+ {[%emt 0:02:16]} 37. Kh2 {[%emt 0:00:20]} Rf4 {[%emt 0:02:17]} 0-1

[Event "3rd Memorial Warakomska 2019"]
[Site "Suwalki"]
[Date "2019.08.11"]
[Round "8.46"]
[White "Wolanski, Michal"]
[Black "Checiak, Krzysztof"]
[Result "1-0"]
[ECO "A20"]
[WhiteElo "2007"]
[BlackElo "2057"]
[Annotator "NA"]
[PlyCount "105"]
[EventDate "2019.08.05"]
[EventType "swiss"]
[EventCountry "POL"]
[SourceTitle "playchess.com"]
[Source "ChessBase"]
[SourceQuality "1"]
[TimeControl "40/5400+30:1800+30"]

1. c4 {[%emt 0:00:00]} e5 {[%emt 0:00:39]} 2. g3 {[%emt 0:00:00]} Nf6 {[%emt 0:00:24]} 3. Bg2 {[%emt 0:00:00]} d5 {[%emt 0:00:18]} 4. cxd5 {[%emt 0:00:09]} Nxd5 {[%emt 0:00:16]} 5. Nf3 {[%emt 0:00:06]} Nc6 {[%emt 0:00:26]} 6. O-O {[%emt 0:00:09]} Be6 {[%emt 0:00:39]} 7. d4 {[%emt 0:03:44]} exd4 {[%emt 0:02:34]} 8. Nxd4 {[%emt 0:00:10]} Nxd4 {[%emt 0:01:01]} 9. Qxd4 {[%emt 0:00:12]} c6 {[%emt 0:01:55]} 10. Nc3 {[%emt 0:15:17]} Qb6 {[%emt 0:08:18]} 11. Qe5 {[%emt 0:08:21]} Nxc3 {[%emt 0:03:35]} 12. bxc3 {[%emt 0:08:15]} Qc5 {[%emt 0:01:35]} 13. Qc7 {[%emt 0:02:37]} Qb6 {[%emt 0:00:38]} 14. Qe5 {[%emt 0:02:09]} Qc5 {[%emt 0:00:54]} 15. Bf4 {[%emt 0:01:49]} Qxe5 {[%emt 0:01:26]} 16. Bxe5 {[%emt 0:00:09]} O-O-O {[%emt 0:00:23]} 17. Bd4 {[%emt 0:05:46]} a6 {[%emt 0:02:13]} 18. Rfb1 {[%emt 0:03:10]} f6 {[%emt 0:00:19]} 19. Rb6 {[%emt 0:02:33]} Kc7 {[%emt 0:05:37]} 20. Rab1 {[%emt 0:02:41]} Bc8 {[%emt 0:01:50]} 21. R6b2 {[%emt 0:03:59]} c5 {[%emt 0:01:35]} 22. Be3 {[%emt 0:00:13]} b5 {[%emt 0:01:28]} 23. a4 {[%emt 0:05:23]} bxa4 {[%emt 0:02:53]} 24. Ra2 {[%emt 0:00:18]} Bd6 {[%emt 0:04:12]} 25. Rxa4 {[%emt 0:01:13]} Rhe8 {[%emt 0:00:40]} 26. c4 {[%emt 0:06:18]} g5 {[%emt 0:00:52]} 27. Ra5 {[%emt 0:05:23]} Re5 {[%emt 0:00:26]} 28. Bd5 {[%emt 0:00:41]} Kd7 {[%emt 0:02:28]} 29. Kf1 {[%emt 0:03:13]} Rde8 {[%emt 0:00:03]} 30. Rb2 {[%emt 0:05:20]} Rxe3 {[%emt 0:08:30]} 31. fxe3 {[%emt 0:00:02]} Kc7 {[%emt 0:00:52]} 32. e4 {[%emt 0:01:21]} h5 {[%emt 0:00:34]} 33. Rb3 {[%emt 0:01:50]} Rh8 {[%emt 0:00:42]} 34. h4 {[%emt 0:01:44]} g4 {[%emt 0:01:48]} 35. Kf2 {[%emt 0:03:06]} Rf8 {[%emt 0:00:08]} 36. Ra1 {[%emt 0:00:41]} f5 {[%emt 0:00:38]} 37. exf5 {[%emt 0:00:27]} Rxf5+ {[%emt 0:00:52]} 38. Kg2 {[%emt 0:00:19]} Be5 {[%emt 0:01:25]} 39. Rab1 {[%emt 0:01:22]} Rf8 {[%emt 0:03:05]} 40. Rf1 {[%emt 0:00:00]} Rxf1 {[%emt 0:00:00]} 41. Kxf1 {[%emt 0:06:31]} Bd7 {[%emt 0:02:11]} 42. Rb7+ {[%emt 0:06:46]} Kd8 {[%emt 0:01:04]} 43. Kf2 {[%emt 0:06:08]} a5 {[%emt 0:00:03]} 44. Ra7 {[%emt 0:02:16]} a4 {[%emt 0:00:10]} 45. Bf7 {[%emt 0:00:40]} Bb2 {[%emt 0:00:55]} 46. Bxh5 {[%emt 0:03:50]} a3 {[%emt 0:00:01]} 47. Bg6 {[%emt 0:00:43]} Be6 {[%emt 0:05:16]} 48. Bd3 {[%emt 0:00:33]} Ke8 {[%emt 0:00:23]} 49. h5 {[%emt 0:01:17]} Kf8 {[%emt 0:00:43]} 50. h6 {[%emt 0:00:26]} Bf7 {[%emt 0:01:15]} 51. Ra8+ {[%emt 0:01:19]} Ke7 {[%emt 0:00:22]} 52. h7 {[%emt 0:00:21]} Be8 {[%emt 0:00:40]} 53. Rxa3 {[%emt 0:00:42]} 1-0

[Event "3rd Memorial Warakomska 2019"]
[Site "Suwalki"]
[Date "2019.08.11"]
[Round "8.48"]
[White "Nowak, Lukasz"]
[Black "Skawinski, Arkadiusz"]
[Result "1/2-1/2"]
[ECO "D52"]
[WhiteElo "2264"]
[BlackElo "2398"]
[Annotator "NA"]
[PlyCount "83"]
[EventDate "2019.08.05"]
[EventType "swiss"]
[EventCountry "POL"]
[SourceTitle "playchess.com"]
[Source "ChessBase"]
[SourceQuality "1"]
[TimeControl "40/5400+30:1800+30"]

1. d4 {[%emt 0:00:00]} d5 {[%emt 0:04:08]} 2. c4 {[%emt 0:00:00]} c6 {[%emt 0:00:20]} 3. Nf3 {[%emt 0:00:00]} Nf6 {[%emt 0:00:21]} 4. Nc3 {[%emt 0:00:03]} e6 {[%emt 0:00:31]} 5. Bg5 {[%emt 0:00:12]} Nbd7 {[%emt 0:04:57]} 6. e3 {[%emt 0:00:25]} Be7 {[%emt 0:00:07]} 7. Qc2 {[%emt 0:04:48]} O-O {[%emt 0:02:12]} 8. a3 {[%emt 0:01:08]} b6 {[%emt 0:06:24]} 9. Bd3 {[%emt 0:09:54]} Bb7 {[%emt 0:16:57]} 10. O-O {[%emt 0:00:47]} dxc4 {[%emt 0:01:36]} 11. Bxc4 {[%emt 0:00:13]} c5 {[%emt 0:00:03]} 12. Rfd1 {[%emt 0:03:27]} Rc8 {[%emt 0:23:58]} 13. Qe2 {[%emt 0:26:45]} cxd4 {[%emt 0:03:57]} 14. Nxd4 {[%emt 0:11:30]} Qc7 {[%emt 0:02:02]} 15. Ba2 {[%emt 0:10:40]} Rfd8 {[%emt 0:10:07]} 16. Rac1 {[%emt 0:02:15]} Qb8 {[%emt 0:06:42]} 17. Bh4 {[%emt 0:13:21]} Bd6 {[%emt 0:02:15]} 18. Bg3 {[%emt 0:02:04]} Bxg3 {[%emt 0:00:04]} 19. hxg3 {[%emt 0:00:06]} a6 {[%emt 0:00:10]} 20. Rc2 {[%emt 0:01:13]} Qa8 {[%emt 0:02:11]} 21. f3 {[%emt 0:00:30]} Qb8 {[%emt 0:00:02]} 22. g4 {[%emt 0:01:40]} Nf8 {[%emt 0:00:49]} 23. Rcd2 {[%emt 0:00:35]} h6 {[%emt 0:00:44]} 24. f4 {[%emt 0:02:14]} Rc7 {[%emt 0:05:33]} 25. g5 {[%emt 0:01:36]} hxg5 {[%emt 0:00:09]} 26. fxg5 {[%emt 0:00:06]} Ne4 {[%emt 0:01:56]} 27. Nxe4 {[%emt 0:00:09]} Bxe4 {[%emt 0:00:03]} 28. Qxa6 {[%emt 0:00:42]} Rcd7 {[%emt 0:00:11]} 29. Qf1 {[%emt 0:00:36]} Ng6 {[%emt 0:02:27]} 30. Nf3 {[%emt 0:03:06]} Rxd2 {[%emt 0:01:07]} 31. Rxd2 {[%emt 0:00:10]} Bxf3 {[%emt 0:00:54]} 32. Rxd8+ {[%emt 0:00:20]} Qxd8 {[%emt 0:00:03]} 33. Qxf3 {[%emt 0:00:10]} Qxg5 {[%emt 0:00:05]} 34. Bb1 {[%emt 0:00:32]} f5 {[%emt 0:03:18]} 35. Ba2 {[%emt 0:00:16]} Nf8 {[%emt 0:00:02]} 36. Qf4 {[%emt 0:01:26]} Qxf4 {[%emt 0:00:46]} 37. exf4 {[%emt 0:00:05]} Kf7 {[%emt 0:00:02]} 38. Kf2 {[%emt 0:03:54]} Kf6 {[%emt 0:00:31]} 39. Ke3 {[%emt 0:00:21]} e5 {[%emt 0:00:03]} 40. g3 {[%emt 0:00:00]} Ne6 {[%emt 0:00:00]} 41. Bd5 {[%emt 0:09:15]} g5 {[%emt 0:08:17]} 42. Bxe6 {[%emt 0:08:08]} 1/2-1/2

[Event "3rd Memorial Warakomska 2019"]
[Site "Suwalki"]
[Date "2019.08.12"]
[Round "9.18"]
[White "Kiolbasa, Oliwia"]
[Black "Kowalski, Igor"]
[Result "1-0"]
[ECO "B06"]
[WhiteElo "2239"]
[BlackElo "2320"]
[Annotator "ChessBase"]
[PlyCount "73"]
[EventDate "2019.08.05"]
[EventType "swiss"]
[EventCountry "POL"]
[SourceTitle "playchess.com"]
[Source "ChessBase"]
[SourceQuality "1"]
[TimeControl "40/5400+30:1800+30"]

1. e4 {[%emt 0:00:00]} g6 {[%emt 0:00:00]} 2. d4 {[%emt 0:00:00]} Bg7 {[%emt 0:00:00]} 3. Nc3 {[%emt 0:00:03]} a6 {[%emt 0:00:00]} 4. Be3 {[%emt 0:00:20]} d6 {[%emt 0:00:00]} 5. h4 {[%emt 0:01:30]} h5 {[%emt 0:00:06]} 6. Qd2 {[%emt 0:00:36]} b5 {[%emt 0:00:24]} 7. O-O-O {[%emt 0:00:27]} Bb7 {[%emt 0:00:05]} 8. f3 {[%emt 0:00:33]} Nd7 {[%emt 0:00:06]} 9. Kb1 {[%emt 0:01:40]} Rc8 {[%emt 0:00:47]} 10. Nh3 {[%emt 0:00:26]} c5 {[%emt 0:00:28]} 11. Ng5 {[%emt 0:05:13]} cxd4 {[%emt 0:10:37]} 12. Bxd4 {[%emt 0:00:11]} Bxd4 {[%emt 0:00:06]} 13. Qxd4 {[%emt 0:00:12]} Ngf6 {[%emt 0:00:05]} 14. g3 {[%emt 0:06:32]} O-O {[%emt 0:05:32]} 15. g4 {[%emt 0:06:02]} Qb6 {[%emt 0:14:13]} 16. Qd2 {[%emt 0:07:16]} Rc7 {[%emt 0:12:35]} 17. Bd3 {[%emt 0:07:31]} Ne5 {[%emt 0:05:41]} 18. gxh5 {[%emt 0:01:43]} Nxh5 {[%emt 0:00:06]} 19. Rdg1 {[%emt 0:04:25]} Rfc8 {[%emt 0:04:56]} 20. f4 {[%emt 0:18:01]} Nxd3 {[%emt 0:00:54]} 21. Qxd3 {[%emt 0:00:52]} Qc5 {[%emt 0:08:39]} 22. f5 {[%emt 0:05:25]} Qe5 {[%emt 0:19:04]} 23. fxg6 {[%emt 0:16:49]} fxg6 {[%emt 0:00:03]} 24. Nf3 {[%emt 0:00:16]} Qg7 {[%emt 0:00:40]} 25. Nd4 {[%emt 0:05:46]} Kh7 {[%emt 0:11:39]} 26. Ne6 {[%emt 0:05:16]} Rxc3 {[%emt 0:00:15]} 27. bxc3 {[%emt 0:00:02]} Qxc3 {[%emt 0:00:07]} 28. Qxc3 {[%emt 0:01:05]} Rxc3 {[%emt 0:00:04]} 29. Ng5+ {[%emt 0:00:04]} Kg7 {[%emt 0:00:25]} 30. Re1 {[%emt 0:00:15]} Nf4 {[%emt 0:03:16]} 31. Kb2 {[%emt 0:04:10]} Rc4 {[%emt 0:01:21]} 32. Rhg1 {[%emt 0:02:29]} a5 {[%emt 0:01:25]} 33. Rg3 {[%emt 0:00:24]} b4 {[%emt 0:00:52]} 34. a3 {[%emt 0:00:31]} Rd4 {[%emt 0:01:17]} 35. Rf3 {[%emt 0:00:46]} Ng2 {[%emt 0:00:32]} 36. Re2 {[%emt 0:00:24]} bxa3+ {[%emt 0:00:46]} 37. Kxa3 {[%emt 0:00:20]} 1-0

[Event "3rd Memorial Warakomska 2019"]
[Site "Suwalki"]
[Date "2019.08.12"]
[Round "9.19"]
[White "Sanz Wawer, Daniel"]
[Black "Punin, Andrii"]
[Result "1/2-1/2"]
[ECO "B01"]
[WhiteElo "2154"]
[BlackElo "2305"]
[Annotator "ChessBase"]
[PlyCount "35"]
[EventDate "2019.08.05"]
[EventType "swiss"]
[EventCountry "POL"]
[SourceTitle "playchess.com"]
[Source "ChessBase"]
[SourceQuality "1"]
[TimeControl "40/5400+30:1800+30"]

1. e4 {[%emt 0:00:00]} d5 {[%emt 0:00:00]} 2. exd5 {[%emt 0:00:00]} Qxd5 {[%emt 0:00:00]} 3. Nc3 {[%emt 0:00:00]} Qd6 {[%emt 0:00:00]} 4. d4 {[%emt 0:00:00]} Nf6 {[%emt 0:00:00]} 5. Nf3 {[%emt 0:00:02]} a6 {[%emt 0:00:00]} 6. g3 {[%emt 0:01:41]} Bg4 {[%emt 0:00:05]} 7. Bg2 {[%emt 0:15:52]} c6 {[%emt 0:00:58]} 8. O-O {[%emt 0:01:46]} e6 {[%emt 0:00:29]} 9. h3 {[%emt 0:06:18]} Bxf3 {[%emt 0:00:05]} 10. Bxf3 {[%emt 0:00:05]} Be7 {[%emt 0:00:34]} 11. Bf4 {[%emt 0:01:07]} Qd8 {[%emt 0:01:05]} 12. Ne4 {[%emt 0:05:04]} Nxe4 {[%emt 0:00:08]} 13. Bxe4 {[%emt 0:00:05]} Nd7 {[%emt 0:00:45]} 14. Bg2 {[%emt 0:08:20]} O-O {[%emt 0:01:44]} 15. Qe2 {[%emt 0:00:17]} Re8 {[%emt 0:01:33]} 16. Rad1 {[%emt 0:02:37]} Bg5 {[%emt 0:01:39]} 17. Be5 {[%emt 0:09:10]} Nxe5 {[%emt 0:01:26]} 18. Qxe5 {[%emt 0:03:33]} 1/2-1/2